[Event "GER-ch Youth ODJM 2019"]
[Site "Willingen"]
[Date "2019.06.12"]
[Round "6.5"]
[White "Schmied, Elias"]
[Black "Reuter, Julian-Frank"]
[Result "1-0"]
[ECO "A32"]
[WhiteElo "1669"]
[BlackElo "1733"]
[Annotator "NA"]
[PlyCount "158"]
[EventDate "2019.06.07"]
[EventType "swiss"]
[EventRounds "9"]
[EventCountry "GER"]
[SourceTitle "playchess.com"]
[Source "ChessBase"]
[SourceQuality "1"]
[TimeControl "40/5400+30:1800+30"]

1. d4 {[%emt 0:00:00]} Nf6 {[%emt 0:00:00]} 2. c4 {[%emt 0:00:00]} c5 {[%emt 0:00:00]} 3. Nf3 {[%emt 0:00:57]} cxd4 {[%emt 0:00:02]} 4. Nxd4 {[%emt 0:00:12]} e6 {[%emt 0:00:46]} 5. Nc3 {[%emt 0:01:43]} Bb4 {[%emt 0:00:09]} 6. Qc2 {[%emt 0:06:55]} Nc6 {[%emt 0:01:15]} 7. e3 {[%emt 0:02:40]} O-O {[%emt 0:00:13]} 8. Be2 {[%emt 0:04:02]} Qb6 {[%emt 0:03:28]} 9. Nf3 {[%emt 0:04:06]} d5 {[%emt 0:00:30]} 10. O-O {[%emt 0:09:41]} Rd8 {[%emt 0:04:52]} 11. Rd1 {[%emt 0:02:06]} h6 {[%emt 0:00:15]} 12. a3 {[%emt 0:01:00]} Be7 {[%emt 0:00:18]} 13. b4 {[%emt 0:01:48]} a6 {[%emt 0:04:43]} 14. c5 {[%emt 0:05:11]} Qc7 {[%emt 0:00:52]} 15. Bb2 {[%emt 0:01:00]} Nd7 {[%emt 0:05:06]} 16. Rd2 {[%emt 0:07:37]} b6 {[%emt 0:01:01]} 17. cxb6 {[%emt 0:00:48]} Nxb6 {[%emt 0:00:19]} 18. Na4 {[%emt 0:00:24]} Nxa4 {[%emt 0:03:06]} 19. Qxa4 {[%emt 0:02:54]} Bd7 {[%emt 0:00:21]} 20. Rc1 {[%emt 0:02:48]} Qb7 {[%emt 0:00:45]} 21. Qb3 {[%emt 0:01:00]} Na7 {[%emt 0:01:34]} 22. Ne5 {[%emt 0:06:00]} Bb5 {[%emt 0:12:44]} 23. Bxb5 {[%emt 0:01:17]} Nxb5 {[%emt 0:00:21]} 24. Nc6 {[%emt 0:01:51]} Rdc8 {[%emt 0:00:14]} 25. Nxe7+ {[%emt 0:00:08]} Qxe7 {[%emt 0:00:02]} 26. Rdc2 {[%emt 0:00:42]} Qd7 {[%emt 0:00:28]} 27. Rc5 {[%emt 0:06:47]} Rxc5 {[%emt 0:02:29]} 28. Rxc5 {[%emt 0:00:27]} Rc8 {[%emt 0:00:16]} 29. Qc2 {[%emt 0:00:37]} Nd6 {[%emt 0:00:10]} 30. Rxc8+ {[%emt 0:01:56]} Nxc8 {[%emt 0:00:14]} 31. Qc5 {[%emt 0:03:13]} Nd6 {[%emt 0:01:03]} 32. Qc3 {[%emt 0:05:47]} f6 {[%emt 0:00:16]} 33. h3 {[%emt 0:00:24]} Nc4 {[%emt 0:04:25]} 34. Qb3 {[%emt 0:04:21]} Nd2 {[%emt 0:07:00]} 35. Qd3 {[%emt 0:01:12]} Nc4 {[%emt 0:00:09]} 36. Qb3 {[%emt 0:00:10]} e5 {[%emt 0:02:22]} 37. Bc3 {[%emt 0:06:06]} Kh8 {[%emt 0:03:09]} 38. a4 {[%emt 0:01:54]} Qb7 {[%emt 0:02:06]} 39. Kh1 {[%emt 0:03:26]} Nd6 {[%emt 0:01:25]} 40. Bb2 {[%emt 0:02:48]} Ne4 {[%emt 0:01:57]} 41. Kg1 {[%emt 0:31:58]} Nd6 {[%emt 0:36:36]} 42. Ba3 {[%emt 0:00:00]} Nc4 {[%emt 0:00:00]} 43. Bb2 {[%emt 0:00:00]} Qd7 {[%emt 0:00:00]} 44. Bc3 {[%emt 0:00:00]} Nb6 {[%emt 0:00:00]} 45. b5 {[%emt 0:00:00]} axb5 {[%emt 0:00:00]} 46. Qxb5 {[%emt 0:00:00]} Qxb5 {[%emt 0:00:00]} 47. axb5 {[%emt 0:00:00]} Kg8 {[%emt 0:00:00]} 48. Kf1 {[%emt 0:00:00]} Kf7 {[%emt 0:00:00]} 49. Ke2 {[%emt 0:00:00]} Ke6 {[%emt 0:00:00]} 50. Kd3 {[%emt 0:00:00]} Kd7 {[%emt 0:00:00]} 51. Bb4 {[%emt 0:00:00]} g6 {[%emt 0:00:00]} 52. Bf8 {[%emt 0:00:00]} h5 {[%emt 0:00:00]} 53. Kc3 {[%emt 0:00:00]} f5 {[%emt 0:00:00]} 54. Kb4 {[%emt 0:00:00]} d4 {[%emt 0:00:00]} 55. exd4 {[%emt 0:00:00]} exd4 {[%emt 0:00:00]} 56. Kc5 {[%emt 0:00:00]} d3 {[%emt 0:00:00]} 57. Bh6 {[%emt 0:00:00]} Na4+ {[%emt 0:00:00]} 58. Kb4 {[%emt 0:00:00]} Nb2 {[%emt 0:00:00]} 59. Kc3 {[%emt 0:00:00]} Nd1+ {[%emt 0:00:00]} 60. Kxd3 {[%emt 0:00:00]} Nxf2+ {[%emt 0:00:00]} 61. Kd4 {[%emt 0:01:44]} Ne4 {[%emt 0:00:00]} 62. Ke5 {[%emt 0:00:59]} Nd6 {[%emt 0:07:35]} 63. Kf6 {[%emt 0:01:56]} Nxb5 {[%emt 0:00:06]} 64. Kxg6 {[%emt 0:00:10]} Ke6 {[%emt 0:00:02]} 65. Kxh5 {[%emt 0:01:34]} Kf6 {[%emt 0:00:11]} 66. Bg5+ {[%emt 0:01:52]} Kf7 {[%emt 0:00:09]} 67. Bf4 {[%emt 0:00:28]} Kf6 {[%emt 0:00:30]} 68. Bg5+ {[%emt 0:00:51]} Kf7 {[%emt 0:00:06]} 69. Bd8 {[%emt 0:00:08]} Nd4 {[%emt 0:00:20]} 70. Bc7 {[%emt 0:02:24]} Kf6 {[%emt 0:00:41]} 71. g3 {[%emt 0:01:10]} Ne6 {[%emt 0:00:32]} 72. Bd6 {[%emt 0:00:59]} Nd8 {[%emt 0:02:16]} 73. Bb4 {[%emt 0:01:09]} Ne6 {[%emt 0:00:53]} 74. Bc3+ {[%emt 0:00:07]} Kf7 {[%emt 0:00:07]} 75. Be5 {[%emt 0:00:23]} Nc5 {[%emt 0:00:45]} 76. Kg5 {[%emt 0:01:49]} Ke6 {[%emt 0:00:14]} 77. Bf4 {[%emt 0:01:08]} Ne4+ {[%emt 0:01:05]} 78. Kg6 {[%emt 0:00:15]} Nf6 {[%emt 0:01:08]} 79. h4 {[%emt 0:00:26]} Kd5 {normal} 1-0

[Event "GER-ch Youth ODJM 2019"]
[Site "Willingen"]
[Date "2019.06.12"]
[Round "6.7"]
[White "Grossmann, Piet"]
[Black "Kublanov, Carolin"]
[Result "1-0"]
[ECO "B06"]
[WhiteElo "1801"]
[BlackElo "1748"]
[Annotator "NA"]
[PlyCount "95"]
[EventDate "2019.06.07"]
[EventType "swiss"]
[EventRounds "9"]
[EventCountry "GER"]
[SourceTitle "playchess.com"]
[Source "ChessBase"]
[SourceQuality "1"]
[TimeControl "40/5400+30:1800+30"]

1. e4 {[%emt 0:00:00]} g6 {[%emt 0:00:00]} 2. d4 {[%emt 0:00:00]} Bg7 {[%emt 0:00:00]} 3. Nc3 {[%emt 0:00:00]} d6 {[%emt 0:00:29]} 4. f4 {[%emt 0:00:15]} a6 {[%emt 0:01:19]} 5. Nf3 {[%emt 0:00:38]} b5 {[%emt 0:01:36]} 6. Bd3 {[%emt 0:00:58]} Nd7 {[%emt 0:00:50]} 7. Be3 {[%emt 0:01:27]} c5 {[%emt 0:02:54]} 8. dxc5 {[%emt 0:00:54]} Nxc5 {[%emt 0:01:15]} 9. Bxc5 {[%emt 0:01:24]} dxc5 {[%emt 0:01:53]} 10. e5 {[%emt 0:00:52]} Nh6 {[%emt 0:07:54]} 11. Be4 {[%emt 0:03:18]} Qxd1+ {[%emt 0:03:39]} 12. Rxd1 {[%emt 0:00:04]} Ra7 {[%emt 0:01:21]} 13. O-O {[%emt 0:04:53]} O-O {[%emt 0:01:18]} 14. h3 {[%emt 0:01:44]} Nf5 {[%emt 0:02:14]} 15. Kf2 {[%emt 0:02:38]} f6 {[%emt 0:13:12]} 16. g4 {[%emt 0:06:49]} Nd4 {[%emt 0:04:27]} 17. Nxd4 {[%emt 0:31:10]} cxd4 {[%emt 0:00:45]} 18. exf6 {[%emt 0:00:48]} Bxf6 {[%emt 0:06:55]} 19. Nd5 {[%emt 0:01:00]} Bg7 {[%emt 0:04:17]} 20. Kg3 {[%emt 0:02:00]} e6 {[%emt 0:05:09]} 21. Nb4 {[%emt 0:01:28]} Rc7 {[%emt 0:04:01]} 22. Rf2 {[%emt 0:16:29]} Kh8 {[%emt 0:10:51]} 23. Nd3 {[%emt 0:01:04]} Rcf7 {[%emt 0:10:00]} 24. Rdd2 {[%emt 0:02:21]} Rc7 {[%emt 0:02:34]} 25. Rde2 {[%emt 0:02:56]} a5 {[%emt 0:04:12]} 26. Ne5 {[%emt 0:01:52]} g5 {[%emt 0:01:44]} 27. Nd3 {[%emt 0:00:42]} gxf4+ {[%emt 0:00:57]} 28. Rxf4 {[%emt 0:00:21]} Rxf4 {[%emt 0:00:23]} 29. Kxf4 {[%emt 0:01:29]} Rf7+ {[%emt 0:01:59]} 30. Kg3 {[%emt 0:01:10]} Rf1 {[%emt 0:04:21]} 31. Kg2 {[%emt 0:01:10]} Rf7 {[%emt 0:00:31]} 32. Rf2 {[%emt 0:00:38]} Rxf2+ {[%emt 0:00:35]} 33. Kxf2 {[%emt 0:00:04]} h6 {[%emt 0:01:27]} 34. a3 {[%emt 0:01:11]} Kg8 {[%emt 0:00:26]} 35. Bc6 {[%emt 0:01:35]} Ba6 {[%emt 0:00:38]} 36. Nc5 {[%emt 0:00:30]} Bc8 {[%emt 0:00:16]} 37. Bxb5 {[%emt 0:00:18]} Kf8 {[%emt 0:00:44]} 38. Bd3 {[%emt 0:00:56]} Ke7 {[%emt 0:00:27]} 39. Nb3 {[%emt 0:00:58]} a4 {[%emt 0:00:39]} 40. Nc5 {[%emt 0:00:06]} Bd7 {[%emt 0:00:33]} 41. Nxd7 {[%emt 0:32:58]} Kxd7 {[%emt 0:01:54]} 42. Kf3 {[%emt 0:00:00]} Kd6 {[%emt 0:00:42]} 43. Ke4 {[%emt 0:00:00]} Kc5 {[%emt 0:01:32]} 44. b4+ {[%emt 0:00:00]} axb3 {[%emt 0:01:01]} 45. cxb3 {[%emt 0:00:00]} Bf6 {[%emt 0:04:08]} 46. b4+ {[%emt 0:00:00]} Kd6 {[%emt 0:04:38]} 47. a4 {[%emt 0:00:00]} e5 {[%emt 0:08:44]} 48. a5 {[%emt 0:00:00] normal} 1-0

[Event "GER-ch Youth ODJM 2019"]
[Site "Willingen"]
[Date "2019.06.12"]
[Round "6.8"]
[White "Zieringer, Sebastian"]
[Black "Andresen, Marc"]
[Result "0-1"]
[ECO "C24"]
[WhiteElo "1825"]
[BlackElo "1428"]
[Annotator "NA"]
[PlyCount "28"]
[EventDate "2019.06.07"]
[EventType "swiss"]
[EventRounds "9"]
[EventCountry "GER"]
[SourceTitle "playchess.com"]
[Source "ChessBase"]
[SourceQuality "1"]
[TimeControl "40/5400+30:1800+30"]

1. e4 {[%emt 0:00:00]} e5 {[%emt 0:00:00]} 2. Bc4 {[%emt 0:00:00]} Nf6 {[%emt 0:00:02]} 3. d4 {[%emt 0:00:00]} exd4 {[%emt 0:00:21]} 4. Nf3 {[%emt 0:00:00]} Nxe4 {[%emt 0:01:03]} 5. Qxd4 {[%emt 0:00:06]} Nf6 {[%emt 0:00:05]} 6. Nc3 {[%emt 0:00:10]} Be7 {[%emt 0:03:47]} 7. Bg5 {[%emt 0:00:27]} c6 {[%emt 0:03:15]} 8. O-O-O {[%emt 0:00:12]} d5 {[%emt 0:03:08]} 9. Rhe1 {[%emt 0:09:46]} O-O {[%emt 0:06:50]} 10. Bxd5 {[%emt 0:54:16]} cxd5 {[%emt 0:30:14]} 11. Nxd5 {[%emt 0:01:29]} Qxd5 {[%emt 0:02:33]} 12. Qh4 {[%emt 0:07:40]} Qc5 {[%emt 0:13:54]} 13. Re5 {[%emt 0:00:16]} Qc7 {[%emt 0:00:43]} 14. Rd3 {[%emt 0:02:40]} Nc6 {[%emt 0:01:32] normal} 0-1

[Event "GER-ch Youth ODJM 2019"]
[Site "Willingen"]
[Date "2019.06.12"]
[Round "6.9"]
[White "Kardoeus, David"]
[Black "Mainka, Alwin"]
[Result "1-0"]
[ECO "B76"]
[WhiteElo "2202"]
[BlackElo "1833"]
[Annotator "NA"]
[PlyCount "26"]
[EventDate "2019.06.07"]
[EventType "swiss"]
[EventRounds "9"]
[EventCountry "GER"]
[SourceTitle "playchess.com"]
[Source "ChessBase"]
[SourceQuality "1"]
[TimeControl "40/5400+30:1800+30"]

1. e4 {[%emt 0:00:00]} c5 {[%emt 0:00:00]} 2. Nf3 {[%emt 0:00:01]} d6 {[%emt 0:00:00]} 3. d4 {[%emt 0:00:07]} cxd4 {[%emt 0:00:00]} 4. Nxd4 {[%emt 0:00:04]} Nf6 {[%emt 0:00:00]} 5. Nc3 {[%emt 0:00:05]} g6 {[%emt 0:00:00]} 6. Be3 {[%emt 0:00:07]} Bg7 {[%emt 0:00:05]} 7. f3 {[%emt 0:00:08]} O-O {[%emt 0:00:13]} 8. Qd2 {[%emt 0:00:19]} Nc6 {[%emt 0:00:09]} 9. g4 {[%emt 0:00:15]} Be6 {[%emt 0:00:15]} 10. Nxe6 {[%emt 0:00:06]} fxe6 {[%emt 0:00:06]} 11. O-O-O {[%emt 0:00:28]} a6 {[%emt 0:00:55]} 12. g5 {[%emt 0:04:38]} Ne8 {[%emt 0:12:10]} 13. Bh3 {[%emt 0:02:43] normal} Kf7 {[%emt 0:01:14] normal} 1-0

[Event "GER-ch Youth ODJM 2019"]
[Site "Willingen"]
[Date "2019.06.12"]
[Round "6.10"]
[White "Knudsen, Simon"]
[Black "Gorainow, Nikita"]
[Result "1-0"]
[ECO "B31"]
[WhiteElo "2166"]
[BlackElo "1929"]
[Annotator "NA"]
[PlyCount "48"]
[EventDate "2019.06.07"]
[EventType "swiss"]
[EventRounds "9"]
[EventCountry "GER"]
[SourceTitle "playchess.com"]
[Source "ChessBase"]
[SourceQuality "1"]
[TimeControl "40/5400+30:1800+30"]

1. e4 {[%emt 0:00:00]} c5 {[%emt 0:00:00]} 2. Nf3 {[%emt 0:00:00]} Nc6 {[%emt 0:00:34]} 3. Bb5 {[%emt 0:00:00]} g6 {[%emt 0:00:03]} 4. Bxc6 {[%emt 0:00:00]} bxc6 {[%emt 0:00:03]} 5. O-O {[%emt 0:00:00]} Bg7 {[%emt 0:00:03]} 6. Re1 {[%emt 0:00:03]} Nh6 {[%emt 0:00:04]} 7. c3 {[%emt 0:00:06]} O-O {[%emt 0:00:20]} 8. h3 {[%emt 0:00:04]} f5 {[%emt 0:00:10]} 9. e5 {[%emt 0:00:06]} Nf7 {[%emt 0:00:23]} 10. d3 {[%emt 0:00:09]} Ba6 {[%emt 0:00:07]} 11. Na3 {[%emt 0:01:54]} d6 {[%emt 0:30:36]} 12. Bf4 {[%emt 0:00:09]} g5 {[%emt 0:11:12]} 13. Bxg5 {[%emt 0:02:51]} Nxe5 {[%emt 0:00:22]} 14. Nxe5 {[%emt 0:04:45]} Bxe5 {[%emt 0:01:18]} 15. Qa4 {[%emt 0:00:27]} Bxd3 {[%emt 0:09:37]} 16. Rad1 {[%emt 0:00:24]} Be4 {[%emt 0:15:18]} 17. f3 {[%emt 0:00:07]} Bg3 {[%emt 0:01:00]} 18. fxe4 {[%emt 0:00:17]} Bxe1 {[%emt 0:00:07]} 19. Rxe1 {[%emt 0:00:10]} Qd7 {[%emt 0:03:12]} 20. e5 {[%emt 0:02:29]} d5 {[%emt 0:05:06]} 21. Qh4 {[%emt 0:00:28]} Qe6 {[%emt 0:06:39]} 22. Bxe7 {[%emt 0:00:15]} Rf7 {[%emt 0:00:05]} 23. Bf6 {[%emt 0:00:27]} Kf8 {[%emt 0:00:13]} 24. Nc2 {[%emt 0:02:00]} Rb8 {[%emt 0:00:32] normal} 1-0

[Event "GER-ch Youth ODJM 2019"]
[Site "Willingen"]
[Date "2019.06.12"]
[Round "6.11"]
[White "Hartmann, Jakob"]
[Black "Lohr, Maximilian"]
[Result "1-0"]
[ECO "B01"]
[WhiteElo "2144"]
[BlackElo "1981"]
[Annotator "NA"]
[PlyCount "67"]
[EventDate "2019.06.07"]
[EventType "swiss"]
[EventRounds "9"]
[EventCountry "GER"]
[SourceTitle "playchess.com"]
[Source "ChessBase"]
[SourceQuality "1"]
[TimeControl "40/5400+30:1800+30"]

1. e4 {[%emt 0:00:00]} d5 {[%emt 0:00:33]} 2. exd5 {[%emt 0:00:31]} Qxd5 {[%emt 0:00:33]} 3. Nc3 {[%emt 0:00:44]} Qd6 {[%emt 0:00:13]} 4. d4 {[%emt 0:00:33]} Nf6 {[%emt 0:00:21]} 5. Nf3 {[%emt 0:01:26]} a6 {[%emt 0:00:28]} 6. g3 {[%emt 0:01:20]} b5 {[%emt 0:01:01]} 7. Bg2 {[%emt 0:01:52]} Bb7 {[%emt 0:00:11]} 8. O-O {[%emt 0:01:43]} e6 {[%emt 0:00:34]} 9. Ne5 {[%emt 0:03:12]} Bxg2 {[%emt 0:03:47]} 10. Kxg2 {[%emt 0:00:10]} c5 {[%emt 0:03:31]} 11. Qf3 {[%emt 0:11:07]} Ra7 {[%emt 0:10:07]} 12. Bf4 {[%emt 0:16:02]} Qb6 {[%emt 0:00:35]} 13. dxc5 {[%emt 0:17:07]} Bxc5 {[%emt 0:00:57]} 14. Nd3 {[%emt 0:03:18]} Bd4 {[%emt 0:04:54]} 15. Ne2 {[%emt 0:06:42]} Nc6 {[%emt 0:08:03]} 16. c3 {[%emt 0:04:24]} e5 {[%emt 0:00:06]} 17. Nxd4 {[%emt 0:01:18]} exd4 {[%emt 0:00:42]} 18. Bd6 {[%emt 0:03:20]} Rd7 {[%emt 0:03:20]} 19. Rfe1+ {[%emt 0:03:09]} Kd8 {[%emt 0:00:31]} 20. Bc5 {[%emt 0:03:53]} Qb7 {[%emt 0:00:25]} 21. cxd4 {[%emt 0:01:03]} Na5 {[%emt 0:04:25]} 22. Bb6+ {[%emt 0:05:54]} Qxb6 {[%emt 0:01:43]} 23. Qa8+ {[%emt 0:00:10]} Kc7 {[%emt 0:00:07]} 24. Rac1+ {[%emt 0:00:53]} Nc4 {[%emt 0:03:19]} 25. Qxh8 {[%emt 0:00:33]} Qxd4 {[%emt 0:00:22]} 26. Qxg7 {[%emt 0:04:46]} Qd5+ {[%emt 0:00:31]} 27. Kg1 {[%emt 0:00:42]} Nh5 {[%emt 0:00:45]} 28. Qe5+ {[%emt 0:01:19]} Kb6 {[%emt 0:00:58]} 29. Qxd5 {[%emt 0:01:09]} Rxd5 {[%emt 0:00:05]} 30. Nb4 {[%emt 0:01:39]} Rd6 {[%emt 0:00:44]} 31. b3 {[%emt 0:01:27]} Nd2 {[%emt 0:00:06]} 32. Kg2 {[%emt 0:02:10]} Rg6 {[%emt 0:00:03]} 33. Nd5+ {[%emt 0:00:16]} Ka5 {[%emt 0:00:25]} 34. Rc2 {[%emt 0:00:42] normal} 1-0

[Event "GER-ch Youth ODJM 2019"]
[Site "Willingen"]
[Date "2019.06.12"]
[Round "6.12"]
[White "Leser, Katrin"]
[Black "Dietz, Florian"]
[Result "1-0"]
[ECO "B48"]
[WhiteElo "2036"]
[BlackElo "2139"]
[Annotator "NA"]
[PlyCount "82"]
[EventDate "2019.06.07"]
[EventType "swiss"]
[EventRounds "9"]
[EventCountry "GER"]
[SourceTitle "playchess.com"]
[Source "ChessBase"]
[SourceQuality "1"]
[TimeControl "40/5400+30:1800+30"]

1. e4 {[%emt 0:00:00]} c5 {[%emt 0:00:00]} 2. Nf3 {[%emt 0:00:00]} e6 {[%emt 0:00:00]} 3. d4 {[%emt 0:00:00]} cxd4 {[%emt 0:00:00]} 4. Nxd4 {[%emt 0:00:00]} Nc6 {[%emt 0:00:04]} 5. Nc3 {[%emt 0:01:51]} Qc7 {[%emt 0:00:19]} 6. Be3 {[%emt 0:00:49]} a6 {[%emt 0:00:37]} 7. Qd2 {[%emt 0:01:09]} Nf6 {[%emt 0:01:27]} 8. f3 {[%emt 0:01:34]} Be7 {[%emt 0:00:35]} 9. O-O-O {[%emt 0:00:46]} b5 {[%emt 0:00:14]} 10. g4 {[%emt 0:01:35]} Nxd4 {[%emt 0:00:23]} 11. Bxd4 {[%emt 0:03:31]} Bb7 {[%emt 0:00:24]} 12. Ne2 {[%emt 0:09:45]} Rc8 {[%emt 0:06:05]} 13. Kb1 {[%emt 0:01:50]} O-O {[%emt 0:03:48]} 14. h4 {[%emt 0:19:00]} e5 {[%emt 0:09:00]} 15. Be3 {[%emt 0:07:06]} d5 {[%emt 0:02:01]} 16. g5 {[%emt 0:03:48]} d4 {[%emt 0:02:05]} 17. Bxd4 {[%emt 0:04:50]} Nxe4 {[%emt 0:02:27]} 18. Qd3 {[%emt 0:00:17]} Nf2 {[%emt 0:17:11]} 19. Bxf2 {[%emt 0:03:00]} Rcd8 {[%emt 0:16:56]} 20. Nd4 {[%emt 0:02:11]} exd4 {[%emt 0:00:08]} 21. Qf5 {[%emt 0:02:16]} g6 {[%emt 0:02:44]} 22. Qg4 {[%emt 0:00:52]} Qc6 {[%emt 0:03:06]} 23. Be2 {[%emt 0:04:53]} Bc8 {[%emt 0:03:40]} 24. Qf4 {[%emt 0:08:13]} Bf5 {[%emt 0:00:51]} 25. Bd3 {[%emt 0:00:32]} Bd6 {[%emt 0:00:25]} 26. Qxd4 {[%emt 0:05:56]} Qxf3 {[%emt 0:00:34]} 27. Qf6 {[%emt 0:07:40]} Be7 {[%emt 0:05:51]} 28. Qxe7 {[%emt 0:01:08]} Qxf2 {[%emt 0:07:09]} 29. Rdf1 {[%emt 0:03:43]} Qg2 {[%emt 0:05:21]} 30. Bxf5 {[%emt 0:01:10]} gxf5 {[%emt 0:00:06]} 31. h5 {[%emt 0:01:35]} Rd2 {[%emt 0:01:23]} 32. g6 {[%emt 0:00:36]} Rxc2 {[%emt 0:06:24]} 33. gxf7+ {[%emt 0:01:20]} Rxf7 {[%emt 0:00:17]} 34. Qe8+ {[%emt 0:00:18]} Kg7 {[%emt 0:00:11]} 35. h6+ {[%emt 0:02:27]} Kf6 {[%emt 0:00:08]} 36. Qh8+ {[%emt 0:00:12]} Ke7 {[%emt 0:00:14]} 37. Qe5+ {[%emt 0:00:24]} Kd7 {[%emt 0:01:01]} 38. Rd1+ {[%emt 0:00:37]} Rd2 {[%emt 0:00:13]} 39. Rhe1 {[%emt 0:01:46]} Rf8 {[%emt 0:01:20]} 40. Qe7+ {[%emt 0:00:29]} Kc6 {[%emt 0:00:10]} 41. Re6+ {[%emt 0:30:36]} Kd5 {normal} 1-0

[Event "GER-ch Youth ODJM 2019"]
[Site "Willingen"]
[Date "2019.06.12"]
[Round "6.13"]
[White "Nasoyan, Maksim"]
[Black "Wuebker, Paul-Luca"]
[Result "0-1"]
[ECO "B76"]
[WhiteElo "1877"]
[BlackElo "2035"]
[Annotator "NA"]
[PlyCount "106"]
[EventDate "2019.06.07"]
[EventType "swiss"]
[EventRounds "9"]
[EventCountry "GER"]
[SourceTitle "playchess.com"]
[Source "ChessBase"]
[SourceQuality "1"]
[TimeControl "40/5400+30:1800+30"]

1. e4 {[%emt 0:00:00]} c5 {[%emt 0:00:00]} 2. Nf3 {[%emt 0:00:00]} d6 {[%emt 0:00:00]} 3. d4 {[%emt 0:00:00]} cxd4 {[%emt 0:00:00]} 4. Nxd4 {[%emt 0:00:00]} Nf6 {[%emt 0:00:00]} 5. Nc3 {[%emt 0:00:00]} g6 {[%emt 0:00:04]} 6. f3 {[%emt 0:00:11]} Bg7 {[%emt 0:00:05]} 7. Be3 {[%emt 0:00:03]} O-O {[%emt 0:00:08]} 8. Qd2 {[%emt 0:00:01]} Nc6 {[%emt 0:00:07]} 9. g4 {[%emt 0:00:03]} Be6 {[%emt 0:00:18]} 10. Nxe6 {[%emt 0:00:08]} fxe6 {[%emt 0:00:07]} 11. O-O-O {[%emt 0:00:10]} Ne5 {[%emt 0:01:31]} 12. Be2 {[%emt 0:00:19]} Qc8 {[%emt 0:01:31]} 13. Kb1 {[%emt 0:05:35]} Nfd7 {[%emt 0:04:28]} 14. f4 {[%emt 0:04:39]} Nc4 {[%emt 0:00:25]} 15. Bxc4 {[%emt 0:00:07]} Qxc4 {[%emt 0:00:06]} 16. Qd3 {[%emt 0:00:21]} Qb4 {[%emt 0:03:47]} 17. a3 {[%emt 0:10:46]} Qa5 {[%emt 0:03:30]} 18. Ne2 {[%emt 0:00:59]} Qa4 {[%emt 0:06:40]} 19. e5 {[%emt 0:09:58]} Rad8 {[%emt 0:03:50]} 20. exd6 {[%emt 0:09:40]} Nf6 {[%emt 0:00:22]} 21. dxe7 {[%emt 0:07:10]} Rxd3 {[%emt 0:00:11]} 22. exf8=Q+ {[%emt 0:00:11]} Kxf8 {[%emt 0:00:22]} 23. Bc5+ {[%emt 0:02:47]} Kf7 {[%emt 0:01:00]} 24. Rxd3 {[%emt 0:00:09]} Qc6 {[%emt 0:00:35]} 25. Rhd1 {[%emt 0:02:08]} Qxc5 {[%emt 0:00:10]} 26. g5 {[%emt 0:00:04]} Nd5 {[%emt 0:00:06]} 27. Ng3 {[%emt 0:03:55]} Qc4 {[%emt 0:13:14]} 28. h4 {[%emt 0:05:54]} Bf8 {[%emt 0:03:35]} 29. Rd4 {[%emt 0:01:42]} Qb5 {[%emt 0:00:51]} 30. c4 {[%emt 0:00:51]} Nc3+ {[%emt 0:03:29]} 31. Kc2 {[%emt 0:00:42]} Qa4+ {[%emt 0:00:15]} 32. Kxc3 {[%emt 0:12:27]} Bg7 {[%emt 0:00:08]} 33. R1d3 {[%emt 0:00:29]} Qc6 {[%emt 0:01:49]} 34. Kd2 {[%emt 0:02:17]} Qg2+ {[%emt 0:01:06]} 35. Ne2 {[%emt 0:00:15]} Bxd4 {[%emt 0:00:06]} 36. Rxd4 {[%emt 0:00:03]} Ke7 {[%emt 0:00:08]} 37. c5 {[%emt 0:04:52]} Qh1 {[%emt 0:01:00]} 38. b4 {[%emt 0:07:03]} Qxh4 {[%emt 0:01:14]} 39. b5 Qh1 {[%emt 0:00:17]} 40. Nc3 {[%emt 0:05:55]} Qf3 {[%emt 0:05:11]} 41. a4 {[%emt 0:32:57]} e5 {[%emt 0:32:35]} 42. Re4 {[%emt 0:03:34]} Kd7 {[%emt 0:01:29]} 43. fxe5 {[%emt 0:01:15]} Qf2+ {[%emt 0:02:19]} 44. Kd3 {[%emt 0:00:00]} Qxc5 {[%emt 0:00:00]} 45. e6+ {[%emt 0:00:00]} Ke7 {[%emt 0:00:00]} 46. Re3 {[%emt 0:00:00]} b6 {[%emt 0:00:00]} 47. Ne4 {[%emt 0:00:00]} Qa3+ {[%emt 0:00:00]} 48. Nc3 {[%emt 0:00:00]} Qd6+ {[%emt 0:00:00]} 49. Ke2 {[%emt 0:00:00]} Qc5 {[%emt 0:00:00]} 50. Ne4 {[%emt 0:00:00]} Qc2+ {[%emt 0:00:00]} 51. Kf3 {[%emt 0:00:00]} Kxe6 {[%emt 0:00:00]} 52. Nf6+ {[%emt 0:00:00]} Kf5 {[%emt 0:00:00]} 53. Ng4 {[%emt 0:00:00]} Qd3 {normal} 0-1

[Event "GER-ch Youth ODJM 2019"]
[Site "Willingen"]
[Date "2019.06.12"]
[Round "6.14"]
[White "von Estorff, Jacob"]
[Black "Kolb, Tobias"]
[Result "1-0"]
[ECO "B12"]
[WhiteElo "2041"]
[BlackElo "1915"]
[Annotator "NA"]
[PlyCount "55"]
[EventDate "2019.06.07"]
[EventType "swiss"]
[EventRounds "9"]
[EventCountry "GER"]
[SourceTitle "playchess.com"]
[Source "ChessBase"]
[SourceQuality "1"]
[TimeControl "40/5400+30:1800+30"]

1. e4 {[%emt 0:00:00]} c6 {[%emt 0:00:00]} 2. d4 {[%emt 0:00:00]} d5 {[%emt 0:00:00]} 3. e5 {[%emt 0:00:06]} c5 {[%emt 0:00:00]} 4. c3 {[%emt 0:00:41]} Nc6 {[%emt 0:00:00]} 5. Be3 {[%emt 0:02:59]} Nh6 {[%emt 0:01:15]} 6. Bd3 {[%emt 0:04:35]} Nf5 {[%emt 0:01:46]} 7. Nf3 {[%emt 0:01:20]} Nxe3 {[%emt 0:00:46]} 8. fxe3 {[%emt 0:00:07]} Bg4 {[%emt 0:00:50]} 9. Nbd2 {[%emt 0:00:48]} e6 {[%emt 0:00:40]} 10. O-O {[%emt 0:00:57]} Be7 {[%emt 0:01:02]} 11. Kh1 {[%emt 0:06:31]} O-O {[%emt 0:03:37]} 12. h3 {[%emt 0:01:26]} Bh5 {[%emt 0:01:56]} 13. a3 {[%emt 0:01:37]} a6 {[%emt 0:26:40]} 14. Qe1 {[%emt 0:07:26]} b5 {[%emt 0:06:28]} 15. Qg3 {[%emt 0:04:55]} Bg6 {[%emt 0:11:39]} 16. Bxg6 {[%emt 0:00:33]} hxg6 {[%emt 0:00:12]} 17. dxc5 {[%emt 0:08:47]} Bxc5 {[%emt 0:10:00]} 18. Ng5 {[%emt 0:04:50]} Be7 {[%emt 0:00:08]} 19. Ndf3 {[%emt 0:00:52]} Re8 {[%emt 0:12:29]} 20. Nxf7 {[%emt 0:11:00]} Kxf7 {[%emt 0:00:32]} 21. Nd4+ {[%emt 0:01:00]} Kg8 {[%emt 0:02:01]} 22. Nxc6 {[%emt 0:00:19]} Qc7 {[%emt 0:00:29]} 23. Nd4 {[%emt 0:03:14]} Bf6 {[%emt 0:00:57]} 24. Nf3 {[%emt 0:03:25]} a5 {[%emt 0:02:04]} 25. Kh2 {[%emt 0:01:01]} Be7 {[%emt 0:02:09]} 26. Qxg6 {[%emt 0:00:15]} Bc5 {[%emt 0:00:26]} 27. Ng5 {[%emt 0:05:02]} Qxe5+ {[%emt 0:01:53]} 28. Rf4 {[%emt 0:00:12] normal} 1-0